fUSD/lending_fUSD_20240729
["ID","MTS","AMOUNT","RATE_DAILY","PERIOD"]
[333520336,1722226255906,-500.0,0.00010999,2]
[333520337,1722226255915,-500.0,0.00010999,2]
[333520338,1722226255924,-500.0,0.00010999,2]
[333520339,1722226255934,-500.0,0.00010999,2]
[333520340,1722226255943,-355.2,0.00010999,2]
[333520341,1722226255953,-500.0,0.00010999,2]
[333520342,1722226255963,-500.0,0.00010999,2]
[333520343,1722226255972,-455.51,0.00010999,2]
[333520344,1722226255981,-1448.71,0.00010999,2]
[333520345,1722226255992,-1448.71,0.00010999,2]
[333520346,1722226256001,-450.18,0.00010999,2]
[333520347,1722226256010,-1448.71,0.00010999,2]
[333520348,1722226256020,-1448.71,0.00010999,2]
[333520349,1722226256030,-1448.71,0.00010999,2]
[333520350,1722226256039,-1448.71,0.00010999,2]
[333520351,1722226256049,-1448.71,0.00010999,2]
[333520352,1722226256059,-1448.71,0.00010999,2]
[333520353,1722226256068,-500.0,0.00010999,2]
[333520354,1722226256077,-500.0,0.00010999,2]
[333520355,1722226256087,-1448.71,0.00010999,2]
[333520356,1722226256096,-500.0,0.00010999,2]
[333520357,1722226256106,-500.0,0.00010999,2]
[333520358,1722226256116,-500.0,0.00010999,2]
[333520359,1722226256254,-500.0,0.00010999,2]
[333520360,1722226256264,-1448.71,0.00010999,2]
[333520361,1722226256274,-1448.71,0.00010999,2]
[333520362,1722226256284,-1448.71,0.00010999,2]
[333520363,1722226256293,-1448.71,0.00010999,2]
[333520364,1722226256303,-1448.71,0.00010999,2]
[333520365,1722226256312,-1448.71,0.00010999,2]
[333520366,1722226256322,-1448.71,0.00010999,2]
[333520367,1722226256332,-1448.71,0.00010999,2]
[333520368,1722226256341,-1448.71,0.00010999,2]
[333520369,1722226256351,-1448.71,0.00010999,2]
[333520370,1722226256361,-1448.71,0.00010999,2]
[333520371,1722226256370,-1448.71,0.00010999,2]
[333520372,1722226256380,-1448.71,0.00010999,2]
[333520373,1722226256389,-1448.71,0.00010999,2]
[333520374,1722226256399,-557.12811401,0.00010999,2]
[333520375,1722226256423,-572.85,0.00010999,2]
[333520376,1722226256440,-318.95677135,0.00010999,2]
[333520377,1722226256449,-500.0,0.00010999,2]
[333520378,1722226256459,-46.46566635,0.00010999,2]
[333520379,1722226256472,-453.53433365,0.00010999,2]
[333520380,1722226256483,-500.0,0.00010999,2]
[333520381,1722226256492,-500.0,0.00010999,2]
[333520382,1722226256503,-141.72500954,0.00010999,2]
[333520383,1722226256514,-358.27499046,0.00010999,2]
[333520384,1722226256524,-500.0,0.00010999,2]
[333520385,1722226256533,-500.0,0.00010999,2]
[333520386,1722226256542,-500.0,0.00010999,2]
[333520387,1722226256552,-595.28,0.00010999,2]
[333520388,1722226256561,-500.0,0.00010999,2]
[333520389,1722226256570,-500.0,0.00010999,2]
[333520390,1722226256580,-500.0,0.00010999,2]
[333520391,1722226256589,-500.0,0.00010999,2]
[333520392,1722226256598,-500.0,0.00010999,2]
[333520393,1722226256607,-500.0,0.00010999,2]
[333520394,1722226256618,-22012.68384344,0.00011,2]
[333520400,1722226339044,155.15629369,7.363e-05,2]
[333520402,1722226418184,155.0,7.363e-05,2]
[333520403,1722226422591,608.72103881,7.363e-05,2]
[333520404,1722226426625,2730.36468711,7.363e-05,2]
[333520405,1722226442573,1858.35798039,7.363e-05,2]
[333520406,1722226442599,872.00670672,7.363e-05,2]
[333520407,1722226474425,1222.54442824,7.363e-05,2]
[333520408,1722226476993,961.48164715,7.363e-05,2]
[333520409,1722226490848,9490.01676808,7.363e-05,2]
[333520411,1722226752769,155.0,9.5e-05,6]
[333520418,1722227226169,-394.81,8.219e-05,2]
[333520419,1722227226195,-462.23,9.435e-05,2]
[333520420,1722227226217,-1000.0,9.453e-05,2]
[333520421,1722227226432,-300.0,9.499e-05,2]
[333520422,1722227226453,-150.0,9.499e-05,2]
[333520423,1722227226474,-1222.2466986,9.5e-05,2]
[333520424,1722227226495,-541.81285713,9.5e-05,2]
[333520425,1722227226516,-1516.86927062,9.5e-05,2]
[333520426,1722227226539,-961.25222025,9.5e-05,2]
[333520427,1722227226561,-150.0,9.5e-05,2]
[333520428,1722227226585,-150.0,9.5e-05,2]
[333520429,1722227226605,-150.0,9.5e-05,2]
[333520430,1722227226626,-150.0,9.5e-05,2]
[333520431,1722227226647,-150.0,9.5e-05,2]
[333520432,1722227226669,-150.0,9.5e-05,2]
[333520433,1722227226690,-150.36666751,9.5e-05,2]
[333520434,1722227226712,-3825.41228589,9.5e-05,2]
[333520435,1722227230931,-10000.0,9.5e-05,2]
[333520436,1722227231604,-4995.7251016,9.5e-05,2]
[333520437,1722227231626,-155.17684879,9.5e-05,2]
[333520438,1722227231650,-4849.09804961,9.544e-05,2]
[333520439,1722227232276,-10000.0,9.544e-05,2]
[333520440,1722227233252,-9040.90195039,9.544e-05,2]
[333520465,1722227431412,-300.0,9.543e-05,2]
[333520466,1722227431422,-2084.38902668,9.544e-05,2]
[333520467,1722227431434,-2430.15098205,9.544e-05,2]
[333520468,1722227431446,-2015.29501095,9.544e-05,2]
[333520469,1722227431700,-944.97502484,9.544e-05,2]
[333520470,1722227431713,-1249.78872132,9.544e-05,2]
[333520471,1722227431725,-555.249,9.544e-05,2]
[333520472,1722227431743,-2700.0,9.544e-05,2]
[333520473,1722227431754,-3018.95867372,9.544e-05,2]
[333520474,1722227431766,-3822.33094793,9.544e-05,2]
[333520475,1722227431775,-790.28888999,9.544e-05,2]
[333520477,1722227431784,-1852.42,9.568e-05,2]
[333520478,1722227431794,-1139.43314206,9.573e-05,2]
[333520480,1722227431806,-2262.25562924,9.573e-05,2]
[333520481,1722227431817,-5635.9912287,9.573e-05,2]
[333520482,1722227431827,-200.0,9.635e-05,2]
[333520483,1722227431836,-200.6544042,9.646e-05,2]
[333520485,1722227431847,-49.3455958,9.646e-05,2]
[333520486,1722227431857,-11638.7,9.67e-05,2]
[333520487,1722227431866,-250.0,9.746e-05,2]
[333520488,1722227431875,-212.97,9.804e-05,2]
[333520489,1722227431885,-300.0,9.9e-05,3]
[333520490,1722227431895,-7049.33374291,0.0001,2]
[333520491,1722227431904,-600.0,0.0001,3]
[333520492,1722227431914,-900.0,0.000101,3]
[333520493,1722227431923,-1200.0,0.000102,3]
[333520494,1722227431933,-1500.0,0.000103,3]
[333520495,1722227431942,-2490.04885821,0.00010363,2]
[333520496,1722227431952,-300.0,0.000104,3]
[333520497,1722227431963,-394.81,0.00010455,2]
[333520498,1722227431972,-420.0,0.00010497,2]
[333520499,1722227431982,-480.79180308,0.000105,3]
[333520500,1722227431993,-248.27699676,0.000105,3]
[333520501,1722227432003,-300.0,0.000105,3]
[333520502,1722227432012,-110.49291855,0.00010524,2]
[333520503,1722227432024,-729.41708145,0.00010524,2]
[333520504,1722227432034,-300.0,0.000106,3]
[333520505,1722227432043,-76.21323801,0.00010634,2]
[333520506,1722227432054,-923.78676199,0.00010634,2]
[333520507,1722227432064,-11495.0,0.000107,5]
[333520508,1722227432073,-300.0,0.000107,3]
[333520509,1722227432083,-300.0,0.000108,3]
[333520510,1722227432092,-200.0,0.00010839,2]
[333520511,1722227432102,-2561.92384217,0.00010849,2]
[333520512,1722227432111,-2561.92384217,0.00010851,2]
[333520513,1722227432121,-2561.92384217,0.00010862,2]
[333520514,1722227432130,-238.907,0.00010883,2]
[333520515,1722227432139,-853.9137035,0.00010883,2]
[333520516,1722227432150,-447.0862965,0.00010883,2]
[333520517,1722227432159,-3000.0,0.0001089,2]
[333520518,1722227432168,-759.97734263,0.00010899,2]
[333520519,1722227432179,-527.322701,0.00010899,2]
[333520520,1722227432191,-1760.09998051,0.00010899,2]
[333520521,1722227432203,-465.33938848,0.00010899,2]
[333520522,1722227432225,-3459.61560675,0.00010899,2]
[333520523,1722227432235,-993.93632466,0.00010899,2]
[333520524,1722227432246,-5978.41869465,0.00010899,2]
[333520525,1722227432259,-5697.78611573,0.00010899,2]
[333520526,1722227432271,-1028.79,0.00010899,2]
[333520529,1722227437410,-245.77890358,0.00010899,2]
[333520530,1722227437419,-351.46808858,0.00010899,2]
[333520531,1722227437430,-3502.24032318,0.00010899,2]
[333520532,1722227437442,-401.16938917,0.00010899,2]
[333520533,1722227437453,-2717.47721838,0.00010899,2]
[333520534,1722227437463,-6972.35501931,0.00010899,2]
[333520535,1722227437474,-6972.35501931,0.00010899,2]
[333520536,1722227437484,-6972.35501931,0.00010899,2]
[333520537,1722227437493,-6972.35501931,0.00010899,2]
[333520538,1722227437503,-5390.91657679,0.00010899,2]
[333520539,1722227437514,-520.190987,0.00010899,2]
[333520540,1722227437530,-676.53111901,0.00010899,2]
[333520541,1722227437542,-384.71633651,0.00010899,2]
[333520542,1722227437551,-9.41148462,0.00010899,2]
[333520543,1722227437563,-902.15246903,0.00010899,2]
[333520544,1722227437590,-413.13134989,0.00010899,2]
[333520545,1722227437600,-1324.69530354,0.00010899,2]
[333520546,1722227437609,-1324.69530354,0.00010899,2]
[333520547,1722227437618,-1324.69530354,0.00010899,2]
[333520548,1722227437627,-1324.69530354,0.00010899,2]
[333520549,1722227437636,-1324.69530354,0.00010899,2]
[333520550,1722227437645,-1324.69530354,0.00010899,2]
[333520551,1722227437654,-1324.69530354,0.00010899,2]
[333520552,1722227437663,-1324.69530354,0.00010899,2]
[333520553,1722227437672,-6971.68739423,0.000109,2]
[333520554,1722227437683,-0.66762508,0.000109,2]
[333520555,1722227437692,-4927.78852742,0.000109,2]
[333520556,1722227437701,-4927.78852731,0.000109,2]
[333520557,1722227437710,-3942.64994638,0.000109,2]
[333520558,1722227437722,-985.13858093,0.000109,2]
[333520559,1722227437731,-4927.78852731,0.000109,2]
[333520560,1722227437743,-1090.72711606,0.000109,2]
[333520561,1722227437757,-3837.06141125,0.000109,2]
[333520562,1722227437770,-4927.78852731,0.000109,2]
[333520564,1722227437782,-806.54369043,0.000109,2]
[333520565,1722227437794,-4121.24483688,0.000109,2]
[333520566,1722227437805,-3195.5634239,0.000109,2]
[333520567,1722227437818,-688.5,0.000109,2]
[333520568,1722227437832,-1043.72510341,0.000109,2]
[333520569,1722227437844,-130.26196473,0.000109,2]
[333520570,1722227437858,-2821.35211378,0.000109,2]
[333520571,1722227437872,-1847.439928,0.000109,2]
[333520572,1722227437887,-128.7345208,0.000109,2]
[333520573,1722227437899,-4927.78852731,0.000109,2]
[333520574,1722227437911,-4927.78852731,0.000109,2]
[333520575,1722227437921,-2577.43948657,0.000109,2]
[333520576,1722227437936,-398.64828018,0.000109,2]
[333520577,1722227437960,-710.95025,0.000109,2]
[333520578,1722227437977,-585.41820824,0.000109,2]
[333520579,1722227437991,-655.33230232,0.000109,2]
[333520580,1722227438001,-59.32982968,0.000109,2]
[333520581,1722227438014,-468.82128128,0.000109,2]
[333520582,1722227438028,-1433.79153296,0.000109,2]
[333520589,1722227439425,-2965.84588339,0.000109,2]
[333520590,1722227439436,-4927.78852731,0.000109,2]
[333520591,1722227439446,-4927.78852731,0.000109,2]
[333520592,1722227439458,-4927.78852731,0.000109,2]
[333520593,1722227439470,-3817.94901246,0.000109,2]
[333520594,1722227439485,-1009.71667059,0.000109,2]
[333520595,1722227439498,-100.12284426,0.000109,2]
[333520596,1722227439508,-188.3372044,0.000109,2]
[333520597,1722227439520,-594.155,0.000109,2]
[333520598,1722227439535,-413.7332465,0.000109,2]
[333520599,1722227439548,-1058.18044309,0.000109,2]
[333520600,1722227439561,-2673.38263332,0.000109,2]
[333520601,1722227439572,-1496.65202277,0.000109,2]
[333520602,1722227439599,-3431.13650454,0.000109,2]
[333520603,1722227439611,-550.71491913,0.000109,2]
[333520604,1722227439624,-4377.07360818,0.000109,2]
[333520605,1722227439635,-1324.69530354,0.000109,2]
[333520606,1722227439646,-500.0,0.00010958,2]
[333520607,1722227439656,-500.0,0.00010958,2]
[333520608,1722227439667,-561.94,0.00010958,2]
[333520609,1722227439678,-500.0,0.00010958,2]
[333520610,1722227439688,-359.7,0.00010958,2]
[333520611,1722227439699,-623.45,0.00010958,2]
[333520612,1722227439710,-500.0,0.00010958,2]
[333520613,1722227439721,-500.0,0.00010958,2]
[333520614,1722227439732,-500.0,0.00010958,2]
[333520615,1722227439743,-500.0,0.00010958,2]
[333520616,1722227439753,-500.0,0.00010958,2]
[333520617,1722227439763,-527.74053148,0.00010958,2]
[333520618,1722227439774,-500.0,0.00010958,2]
[333520619,1722227439785,-500.0,0.00010958,2]
[333520620,1722227439796,-500.0,0.00010958,2]
[333520621,1722227439806,-500.0,0.00010958,2]
[333520622,1722227439817,-500.0,0.00010958,2]
[333520623,1722227439827,-500.0,0.00010958,2]
[333520624,1722227439838,-500.0,0.00010958,2]
[333520625,1722227439848,-500.0,0.00010958,2]
[333520626,1722227439859,-500.0,0.00010958,2]
[333520627,1722227439870,-500.0,0.00010958,2]
[333520628,1722227439881,-500.0,0.00010958,2]
[333520629,1722227439892,-500.0,0.00010958,2]
[333520630,1722227439902,-500.0,0.00010958,2]
[333520631,1722227439913,-500.0,0.00010958,2]
[333520632,1722227439924,-398.32,0.00010958,2]
[333520633,1722227439935,-500.0,0.00010958,2]
[333520634,1722227439946,-500.0,0.00010958,2]
[333520635,1722227439956,-500.0,0.00010958,2]
[333520636,1722227439967,-500.0,0.00010958,2]
[333520637,1722227439978,-500.0,0.00010958,2]
[333520638,1722227439989,-500.0,0.00010958,2]
[333520639,1722227440000,-500.0,0.00010958,2]
[333520640,1722227440011,-500.0,0.00010958,2]
[333520641,1722227440022,-500.0,0.00010958,2]
[333520642,1722227440033,-500.0,0.00010958,2]
[333520643,1722227440044,-500.0,0.00010958,2]
[333520644,1722227440056,-500.0,0.00010958,2]
[333520645,1722227440067,-500.0,0.00010958,2]
[333520646,1722227440077,-500.0,0.00010958,2]
[333520647,1722227440088,-500.0,0.00010958,2]
[333520648,1722227440099,-500.0,0.00010958,2]
[333520649,1722227440110,-500.0,0.00010958,2]
[333520650,1722227440120,-500.0,0.00010958,2]
[333520651,1722227440131,-500.0,0.00010958,2]
[333520652,1722227440142,-500.0,0.00010958,2]
[333520653,1722227440152,-500.0,0.00010958,2]
[333520654,1722227440163,-500.0,0.00010958,2]
[333520655,1722227440174,-500.0,0.00010958,2]
[333520656,1722227440185,-500.0,0.00010958,2]
[333520657,1722227440196,-500.0,0.00010958,2]
[333520658,1722227440207,-500.0,0.00010958,2]
[333520659,1722227440218,-500.0,0.00010958,2]
[333520660,1722227440228,-500.0,0.00010958,2]
[333520661,1722227440239,-500.0,0.00010958,2]
[333520662,1722227440250,-500.0,0.00010958,2]
[333520663,1722227440263,-500.0,0.00010958,2]
[333520664,1722227440274,-500.0,0.00010958,2]
[333520665,1722227440284,-500.0,0.00010958,2]
[333520666,1722227440295,-500.0,0.00010958,2]
[333520667,1722227440306,-500.0,0.00010958,2]
[333520668,1722227440317,-500.0,0.00010958,2]
[333520669,1722227440328,-500.0,0.00010958,2]
[333520670,1722227440339,-500.0,0.00010958,2]
[333520671,1722227440350,-500.0,0.00010958,2]
[333520672,1722227440361,-500.0,0.00010958,2]
[333520673,1722227440373,-500.0,0.00010958,2]
[333520674,1722227440383,-500.0,0.00010958,2]
[333520675,1722227440394,-500.0,0.00010958,2]
[333520676,1722227440405,-500.0,0.00010958,2]
[333520677,1722227440417,-500.0,0.00010958,2]
[333520678,1722227440427,-500.0,0.00010958,2]
[333520679,1722227440438,-500.0,0.00010958,2]
[333520680,1722227440449,-500.0,0.00010958,2]
[333520681,1722227440459,-500.0,0.00010958,2]
[333520682,1722227440472,-500.0,0.00010958,2]
[333520683,1722227440482,-500.0,0.00010958,2]
[333520684,1722227440493,-500.0,0.00010958,2]
[333520685,1722227440504,-500.0,0.00010958,2]
[333520686,1722227440516,-500.0,0.00010958,2]
[333520687,1722227440526,-500.0,0.00010958,2]
[333520688,1722227440537,-500.0,0.00010958,2]
[333520689,1722227440548,-500.0,0.00010958,2]
[333520690,1722227440559,-500.0,0.00010958,2]
[333520691,1722227440570,-500.0,0.00010958,2]
[333520692,1722227440582,-500.0,0.00010958,2]
[333520693,1722227440592,-500.0,0.00010958,2]
[333520694,1722227440603,-500.0,0.00010958,2]
[333520695,1722227440615,-500.0,0.00010958,2]
[333520696,1722227440626,-500.0,0.00010958,2]
[333520697,1722227440638,-453.12325979,0.00010958,2]
[333520698,1722227440651,-500.0,0.00010958,2]
[333520699,1722227440663,-500.0,0.00010958,2]
[333520700,1722227440674,-500.0,0.00010958,2]
[333520701,1722227440686,-500.0,0.00010958,2]
[333520702,1722227440698,-500.0,0.00010958,2]
[333520703,1722227440709,-552.666573,0.00010958,2]
[333520704,1722227440722,-500.0,0.00010958,2]
[333520705,1722227440734,-500.0,0.00010958,2]
[333520706,1722227440746,-500.0,0.00010958,2]
[333520707,1722227440757,-643.8,0.00010958,2]
[333520708,1722227440769,-500.0,0.00010958,2]
[333520709,1722227440778,-500.0,0.00010958,2]
[333520710,1722227440788,-340.00665003,0.00010958,2]
[333520711,1722227441367,-164.13201344,0.00010958,2]
[333520712,1722227441377,-290.94598568,0.00010958,2]
[333520713,1722227441389,-209.05401432,0.00010958,2]
[333520714,1722227441399,-509.4259022,0.00010958,2]
[333520715,1722227441409,-500.0,0.00010958,2]
[333520716,1722227441418,-500.0,0.00010958,2]
[333520717,1722227441429,-500.0,0.00010958,2]
[333520718,1722227441439,-500.0,0.00010958,2]
[333520719,1722227441448,-500.0,0.00010958,2]
[333520720,1722227441457,-500.0,0.00010958,2]
[333520721,1722227441470,-500.0,0.00010958,2]
[333520722,1722227441479,-500.0,0.00010958,2]
[333520723,1722227441488,-500.0,0.00010958,2]
[333520724,1722227441497,-500.0,0.00010958,2]
[333520725,1722227441506,-448.37192165,0.00010958,2]
[333520726,1722227441515,-707.98,0.00010958,2]
[333520727,1722227441525,-500.0,0.00010958,2]
[333520728,1722227441534,-500.0,0.00010958,2]
[333520729,1722227441543,-500.0,0.00010958,2]
[333520730,1722227441553,-500.0,0.00010958,2]
[333520731,1722227441563,-500.0,0.00010958,2]
[333520732,1722227441572,-500.0,0.00010958,2]
[333520733,1722227441581,-500.0,0.00010958,2]
[333520734,1722227441591,-500.0,0.00010958,2]
[333520735,1722227441600,-500.0,0.00010958,2]
[333520736,1722227441609,-500.0,0.00010958,2]
[333520737,1722227441618,-409.90204329,0.00010958,2]
[333520738,1722227441627,-500.0,0.00010958,2]
[333520739,1722227441636,-500.0,0.00010958,2]
[333520740,1722227441645,-500.0,0.00010958,2]
[333520741,1722227441655,-500.0,0.00010958,2]
[333520742,1722227441664,-500.0,0.00010958,2]
[333520743,1722227441673,-606.02458265,0.00010958,2]
[333520744,1722227441683,-500.0,0.00010958,2]
[333520745,1722227441692,-500.0,0.00010958,2]
[333520746,1722227441701,-500.0,0.00010958,2]
[333520747,1722227441711,-500.0,0.00010958,2]
[333520748,1722227441723,-500.0,0.00010958,2]
[333520749,1722227441732,-500.0,0.00010958,2]
[333520750,1722227441742,-343.37969001,0.00010958,2]
[333520751,1722227441751,-500.0,0.00010958,2]
[333520752,1722227441761,-500.0,0.00010958,2]
[333520753,1722227441770,-500.0,0.00010958,2]
[333520754,1722227441779,-176.40035936,0.00010958,2]
[333520755,1722227441788,-500.0,0.00010958,2]
[333520756,1722227441798,-500.0,0.00010958,2]
[333520757,1722227441807,-500.0,0.00010958,2]
[333520758,1722227441816,-500.0,0.00010958,2]
[333520759,1722227441826,-448.83637827,0.00010958,2]
[333520760,1722227441835,-500.0,0.00010958,2]
[333520761,1722227441844,-500.0,0.00010958,2]
[333520762,1722227441853,-500.0,0.00010958,2]
[333520763,1722227441862,-500.0,0.00010958,2]
[333520764,1722227441872,-500.0,0.00010958,2]
[333520765,1722227441881,-500.0,0.00010958,2]
[333520766,1722227441890,-500.0,0.00010958,2]
[333520767,1722227441900,-500.0,0.00010958,2]
[333520768,1722227441910,-500.0,0.00010958,2]
[333520769,1722227441919,-283.02404512,0.00010958,2]
[333520770,1722227441929,-500.0,0.00010958,2]
[333520771,1722227441938,-500.0,0.00010958,2]
[333520772,1722227441947,-500.0,0.00010958,2]
[333520773,1722227441956,-500.0,0.00010958,2]
[333520774,1722227441966,-500.0,0.00010958,2]
[333520775,1722227441977,-500.0,0.00010958,2]
[333520776,1722227441985,-500.0,0.00010958,2]
[333520777,1722227441994,-502.93,0.00010958,2]
[333520778,1722227442004,-500.0,0.00010958,2]
[333520779,1722227442014,-797.93,0.00010958,2]
[333520780,1722227442024,-500.0,0.00010958,2]
[333520781,1722227442033,-500.0,0.00010958,2]
[333520782,1722227442043,-500.0,0.00010958,2]
[333520783,1722227442052,-500.0,0.00010958,2]
[333520784,1722227442061,-209.56168522,0.00010958,2]
[333520785,1722227442070,-500.0,0.00010958,2]
[333520786,1722227442080,-500.0,0.00010958,2]
[333520787,1722227442089,-500.0,0.00010958,2]
[333520788,1722227442098,-500.0,0.00010958,2]
[333520789,1722227442107,-500.0,0.00010958,2]
[333520790,1722227442116,-500.0,0.00010958,2]
[333520791,1722227442125,-537.69762699,0.00010958,2]
[333520792,1722227442134,-620.34102057,0.00010958,2]
[333520793,1722227442144,-527.82365767,0.00010958,2]
[333520794,1722227442153,-500.0,0.00010958,2]
[333520795,1722227442163,-500.0,0.00010958,2]
[333520796,1722227442173,-500.0,0.00010958,2]
[333520797,1722227442182,-500.0,0.00010958,2]
[333520798,1722227442191,-500.0,0.00010958,2]
[333520799,1722227442200,-500.0,0.00010958,2]
[333520800,1722227442209,-500.0,0.00010958,2]
[333520801,1722227442219,-500.0,0.00010958,2]
[333520802,1722227442228,-500.0,0.00010958,2]
[333520803,1722227442237,-500.0,0.00010958,2]
[333520804,1722227442246,-459.14518938,0.00010958,2]
[333520805,1722227442257,-500.0,0.00010958,2]
[333520806,1722227442267,-500.0,0.00010958,2]
[333520808,1722227442276,-500.0,0.00010958,2]
[333520809,1722227442285,-500.0,0.00010958,2]
[333520810,1722227442294,-500.0,0.00010958,2]
[333520811,1722227442305,-344.98,0.00010958,2]
[333520812,1722227442315,-500.0,0.00010958,2]
[333520813,1722227442324,-500.0,0.00010958,2]
[333520814,1722227442334,-500.0,0.00010958,2]
[333520815,1722227442343,-500.0,0.00010958,2]
[333520817,1722227442353,-500.0,0.00010958,2]
[333520819,1722227442362,-500.0,0.00010958,2]
[333520821,1722227442371,-500.0,0.00010958,2]
[333520823,1722227442380,-500.0,0.00010958,2]
[333520825,1722227442389,-500.0,0.00010958,2]
[333520827,1722227442398,-500.0,0.00010958,2]
[333520830,1722227442407,-500.0,0.00010958,2]
[333520833,1722227442416,-500.0,0.00010958,2]
[333520837,1722227442425,-500.0,0.00010958,2]
[333520840,1722227442434,-500.0,0.00010958,2]
[333520841,1722227442443,-500.0,0.00010958,2]
[333520843,1722227442452,-500.0,0.00010958,2]
[333520845,1722227442462,-637.54702058,0.00010958,2]
[333520847,1722227442472,-500.0,0.00010958,2]
[333520849,1722227442481,-500.0,0.00010958,2]
[333520851,1722227442491,-500.0,0.00010958,2]
[333520853,1722227442500,-352.71488407,0.00010958,2]
[333520855,1722227442510,-500.0,0.00010958,2]
[333520856,1722227442519,-500.0,0.00010958,2]
[333520857,1722227442528,-391.64417962,0.00010958,2]
[333520858,1722227442537,-500.0,0.00010958,2]
[333520859,1722227442546,-500.0,0.00010958,2]
[333520860,1722227442555,-500.0,0.00010958,2]
[333520861,1722227442564,-500.0,0.00010958,2]
[333520862,1722227442573,-500.0,0.00010958,2]
[333520863,1722227442583,-500.0,0.00010958,2]
[333520864,1722227442592,-500.0,0.00010958,2]
[333520865,1722227442601,-500.0,0.00010958,2]
[333520866,1722227442610,-500.0,0.00010958,2]
[333520867,1722227442619,-500.0,0.00010958,2]
[333520868,1722227442629,-500.0,0.00010958,2]
[333520869,1722227442638,-500.0,0.00010958,2]
[333520870,1722227442647,-500.0,0.00010958,2]
[333520871,1722227442656,-500.0,0.00010958,2]
[333520872,1722227442665,-500.0,0.00010958,2]
[333520873,1722227442674,-500.0,0.00010958,2]
[333520874,1722227442684,-500.0,0.00010958,2]
[333520875,1722227442693,-500.0,0.00010958,2]
[333520876,1722227442702,-500.0,0.00010958,2]
[333520877,1722227442711,-500.0,0.00010958,2]
[333520878,1722227442721,-500.0,0.00010958,2]
[333520879,1722227442730,-500.0,0.00010958,2]
[333520880,1722227442739,-500.0,0.00010958,2]
[333520881,1722227442748,-500.0,0.00010958,2]
[333520882,1722227442757,-500.0,0.00010958,2]
[333520883,1722227442766,-500.0,0.00010958,2]
[333520884,1722227442775,-500.0,0.00010958,2]
[333520885,1722227442784,-500.0,0.00010958,2]
[333520886,1722227442793,-500.0,0.00010958,2]
[333520887,1722227442803,-500.0,0.00010958,2]
[333520888,1722227442812,-500.0,0.00010958,2]
[333520889,1722227442821,-500.0,0.00010958,2]
[333520891,1722227442830,-500.0,0.00010958,2]
[333520893,1722227442840,-500.0,0.00010958,2]
[333520894,1722227442849,-500.0,0.00010958,2]
[333520896,1722227442858,-500.0,0.00010958,2]
[333520897,1722227442867,-500.0,0.00010958,2]
[333520898,1722227442876,-500.0,0.00010958,2]
[333520899,1722227442885,-500.0,0.00010958,2]
[333520900,1722227442895,-500.0,0.00010958,2]
[333520901,1722227442904,-254.87339407,0.00010958,2]
[333520902,1722227442913,-500.0,0.00010958,2]
[333520903,1722227442923,-500.0,0.00010958,2]
[333520904,1722227442933,-500.0,0.00010958,2]
[333520905,1722227442942,-500.0,0.00010958,2]
[333520906,1722227442951,-500.0,0.00010958,2]
[333520907,1722227442961,-500.0,0.00010958,2]
[333520908,1722227442971,-500.0,0.00010958,2]
[333520909,1722227442979,-500.0,0.00010958,2]
[333520910,1722227442989,-500.0,0.00010958,2]